bitfinex-derivatives/quotes_ETHF0:USTF0_20250316
["timestamp","ask_amount","ask_price","bid_price","bid_amount"]
[1742162570956,5.33277218,1889.4,1888.9,3.9161]
[1742162571164,0.84699,1889.0,1888.9,4.76311]
[1742162571559,1.4458,1889.1,1889.0,0.84699]
[1742162571760,2.29274,1889.1,1889.0,0.84699]
[1742162571961,0.84699,1889.0,1888.9,4.7631]
[1742162572267,0.84708,1888.8,1888.7,0.00794218]
[1742162572457,1.57345,1888.9,1888.7,0.00794218]
[1742162572766,3.56332,1889.0,1888.7,0.85504218]
[1742162573066,0.84708,1888.8,1888.7,0.85504218]
[1742162573262,2.1722,1888.9,1888.8,0.84708]
[1742162573453,3.2078,1889.3,1888.7,0.00794218]
[1742162573454,0.84701,1889.0,1888.9,0.84699]
[1742162573656,2.22437,1889.1,1889.0,0.84696]
[1742162574758,2.22437,1889.1,1889.0,4.05476]
[1742162574961,2.22437,1889.1,1889.0,0.84696]
[1742162575465,1.55113,1889.2,1889.1,0.84694]
[1742162575762,1.55113,1889.2,1888.8,11.03718]
[1742162575763,0.84694,1889.1,1889.0,4.05475]
[1742162576855,0.7042,1889.2,1888.8,0.84703]
[1742162577061,0.84705,1888.9,1888.8,0.84703]
[1742162577365,0.84702,1889.0,1888.9,0.84701]
[1742162577561,0.84702,1889.0,1888.9,4.05481]
[1742162577763,0.84702,1889.0,1888.9,0.84701]
[1742162578060,0.84706,1888.9,1888.8,0.84704]
[1742162578260,2.17516,1888.9,1888.8,0.84704]
[1742162579469,0.84703,1889.0,1888.9,0.84703]
[1742162579670,2.22936,1889.1,1889.0,0.84699]
[1742162580067,1.3824,1889.1,1889.0,0.84699]
[1742162580367,2.93352,1889.2,1889.1,0.84694]
[1742162580766,0.84694,1889.1,1889.0,0.84697]
[1742162580962,2.22934,1889.1,1889.0,0.84697]
[1742162581466,0.84703,1889.0,1888.9,0.847]
[1742162581771,2.22943,1889.0,1888.9,0.847]
[1742162582163,0.84703,1888.9,1888.8,3.2078]
[1742162582372,0.84708,1888.8,1888.7,0.00794218]
[1742162582766,2.19328,1888.8,1888.7,0.00794218]
[1742162585165,0.84708,1888.8,1888.7,0.85506218]
[1742162585363,0.716,1888.9,1888.8,0.84708]
[1742162585562,1.56303,1888.9,1888.8,1.50658]
[1742162585870,1.56303,1888.9,1888.8,0.6595]
[1742162586066,1.56303,1888.9,1888.8,1.50658]
[1742162587069,1.56303,1888.9,1888.8,0.6595]
[1742162587366,0.84708,1888.8,1888.7,0.00794218]
[1742162587562,2.21588,1888.8,1888.7,0.00794218]
[1742162587972,2.21588,1888.8,1888.7,1.42984218]
[1742162589169,2.21588,1888.8,1888.7,2.27696218]
[1742162590175,2.21588,1888.8,1888.7,1.42984218]
[1742162590374,2.21588,1888.8,1888.7,2.27696218]
[1742162590777,1.56307,1888.9,1888.8,0.84708]
[1742162590976,2.91227,1888.9,1888.8,1.4264]
[1742162591178,2.91227,1888.9,1888.8,2.27348]
[1742162591379,2.91227,1888.9,1888.8,2.97218]
[1742162592074,4.05478,1889.1,1889.0,0.84699]
[1742162592276,5.38038,1889.1,1889.0,0.84699]
[1742162592477,2.17258,1889.1,1889.0,0.84699]
[1742162592679,0.7297,1889.2,1889.1,0.84694]
[1742162592978,2.90222,1889.2,1889.1,0.84694]
[1742162593475,0.00794218,1889.4,1889.3,0.84685]
[1742162593781,0.85475218,1889.4,1889.3,0.84685]
[1742162594082,0.85475218,1889.4,1889.3,1.4373]
[1742162594272,0.00794218,1889.4,1889.3,2.28415]
[1742162595079,0.85475218,1889.4,1889.3,1.4373]
[1742162596583,0.85475218,1889.4,1889.3,2.28415]
[1742162596882,0.00794218,1889.4,1889.3,2.28415]
[1742162597873,0.00794218,1889.4,1889.3,3.01245]
[1742162598383,0.85475218,1889.4,1889.3,3.01245]
[1742162599078,0.85475218,1889.4,1889.3,1.4373]
[1742162599883,0.85475218,1889.4,1889.3,2.28415]
[1742162600076,0.85475218,1889.4,1889.3,1.4373]
[1742162601383,0.84699,1889.0,1888.9,3.2078]
[1742162601588,0.84703,1888.9,1888.8,1.3936]
[1742162602288,0.84708,1888.8,1888.7,0.85506218]
[1742162602485,0.84708,1888.8,1888.7,2.24866218]
[1742162602792,2.80556,1889.0,1888.9,0.84699]
[1742162602793,0.84702,1889.0,1888.9,0.84699]
[1742162603085,2.27782,1889.0,1888.9,0.84699]
[1742162603487,2.27782,1889.0,1888.8,1.3936]
[1742162603488,0.84703,1888.9,1888.8,2.24064]
[1742162603682,0.84708,1888.8,1888.7,0.00794218]
[1742162603884,2.28888,1888.8,1888.7,0.00794218]
[1742162604088,2.28888,1888.8,1888.7,2.07664218]
[1742162604389,2.96438,1888.8,1888.7,1.38544218]
[1742162604893,2.96438,1888.8,1888.7,0.00794218]
[1742162606292,6.17218,1888.8,1888.7,0.00794218]
[1742162606593,2.96438,1888.8,1888.7,0.00794218]
[1742162608292,6.17218,1888.8,1888.7,0.00794218]
[1742162609084,2.96438,1888.8,1888.7,0.00794218]
[1742162609885,6.17218,1888.8,1888.7,0.00794218]
[1742162613401,6.17218,1888.8,1888.3,1.3835]
[1742162613402,0.84726,1888.4,1888.3,1.3835]
[1742162613600,0.8473,1888.3,1888.2,0.6697]
[1742162614690,0.84735,1888.2,1888.1,0.00794218]
[1742162614890,2.29285,1888.2,1888.1,0.00794218]
[1742162615100,0.84757,1887.7,1887.6,3.2078]
[1742162616190,0.84762,1887.6,1887.5,0.00794218]
[1742162616386,0.84762,1887.6,1887.5,1.44334218]
[1742162616785,0.84762,1887.6,1887.5,2.29096218]
[1742162617793,0.84762,1887.6,1887.5,1.44334218]
[1742162618104,4.05542,1887.6,1887.5,0.00794218]
[1742162618899,0.84784,1887.1,1887.0,0.7263]
[1742162619998,0.84797,1886.8,1886.7,3.2078]
[1742162620197,0.84797,1886.8,1886.7,1.3653]
[1742162620395,6.64693,1887.0,1886.8,0.84796]
[1742162620396,0.84795,1886.9,1886.8,0.84796]
[1742162620701,1.3194,1887.0,1886.7,1.3653]
[1742162620891,0.84797,1886.8,1886.7,2.21328]
[1742162621292,0.84797,1886.8,1886.7,1.3653]
[1742162622806,2.11961,1887.1,1886.7,1.3653]
[1742162623007,0.84797,1886.8,1886.7,1.3653]
[1742162626005,0.84802,1886.7,1886.6,0.00794218]
[1742162626399,0.84829,1886.1,1886.0,2.0257]
[1742162626605,0.84817,1886.4,1886.0,5.2335]
[1742162626913,0.84811,1886.5,1886.3,0.84818]
[1742162627103,1.4475,1886.6,1886.4,2.18724]
[1742162627104,0.8481,1886.6,1886.4,2.18724]
[1742162627301,0.84811,1886.5,1886.4,1.3391]
[1742162628606,2.2956,1886.6,1886.4,2.18725]
[1742162628909,4.06377218,1886.7,1886.6,0.84806]
[1742162629099,3.21574218,1886.7,1886.6,0.84806]
[1742162629407,0.00794218,1886.7,1886.4,8.1739]
[1742162629597,0.84808,1886.6,1886.5,0.84811]
[1742162629802,0.84808,1886.6,1886.5,2.28651]
[1742162630000,0.85598218,1886.7,1886.5,2.28651]
[1742162630202,0.84806,1886.6,1886.5,1.4384]
[1742162631099,2.20456,1886.6,1886.5,1.4384]
[1742162631505,2.92206,1886.6,1886.5,1.4384]
[1742162631705,0.84806,1886.6,1886.5,1.4384]
[1742162632604,0.84806,1886.6,1886.3,0.73674218]
[1742162632605,0.84815,1886.4,1886.3,0.00794218]
[1742162632804,0.84815,1886.4,1886.3,0.85614218]
[1742162633714,0.84815,1886.4,1886.3,0.00794218]
[1742162633907,0.84815,1886.4,1886.3,1.41174218]
[1742162634215,0.84815,1886.4,1886.3,0.00794218]
[1742162634712,2.17355,1886.4,1886.3,1.36634218]
[1742162636609,5.38135,1886.4,1886.3,0.00794218]
[1742162637209,5.38135,1886.4,1886.3,1.36634218]
[1742162637605,5.38135,1886.4,1886.3,0.00794218]
[1742162639112,5.38135,1886.4,1886.3,1.34154218]
[1742162639910,5.38135,1886.4,1886.3,0.00794218]
[1742162643110,6.10375,1886.4,1886.3,0.00794218]
[1742162645508,5.38135,1886.4,1886.3,0.00794218]
[1742162645714,4.05595,1886.4,1886.3,0.85614218]
[1742162646105,4.05595,1886.4,1886.3,2.18664218]
[1742162646708,4.05595,1886.4,1886.3,1.33844218]
[1742162646905,4.05595,1886.4,1886.3,2.18664218]
[1742162647309,0.84815,1886.4,1886.3,1.33844218]
[1742162648915,5.47905,1886.4,1886.3,1.33844218]
[1742162649413,2.27125,1886.4,1886.3,1.33844218]
[1742162649612,0.84815,1886.4,1886.3,2.18664218]
[1742162649813,0.84815,1886.4,1886.3,2.00384218]
[1742162650410,0.84815,1886.4,1886.3,2.85204218]
[1742162651116,0.84815,1886.4,1886.3,2.00384218]
[1742162651318,0.84815,1886.4,1886.3,2.85204218]
[1742162651514,0.84815,1886.4,1886.3,2.00384218]
[1742162651817,0.84815,1886.4,1886.3,2.85204218]
[1742162652411,0.84815,1886.4,1886.3,1.33844218]
[1742162652612,4.05595,1886.4,1886.3,1.33844218]
[1742162653518,0.84815,1886.4,1886.3,1.33844218]
[1742162654217,4.74095,1886.4,1886.3,0.00794218]
[1742162654417,4.05595,1886.4,1886.3,0.00794218]
[1742162654820,4.05595,1886.4,1886.3,1.33884218]
[1742162658719,0.8481,1886.6,1886.5,0.84811]
[1742162658917,0.84814,1886.5,1886.4,3.9266]
[1742162659118,0.84814,1886.5,1886.4,5.3449]
[1742162659318,0.84814,1886.5,1886.4,1.4183]
[1742162660414,0.67124218,1886.7,1886.5,0.84809]
[1742162660618,0.67124218,1886.7,1886.6,1.4183]
[1742162660619,0.85596218,1886.7,1886.6,1.4183]
[1742162660923,2.23646218,1886.7,1886.6,1.4183]
[1742162662618,0.85596218,1886.7,1886.6,1.4183]
[1742162666119,0.00794218,1886.7,1886.6,2.26636]
[1742162666323,2.11937,1887.4,1886.7,2.12005]
[1742162666512,2.11949,1887.2,1886.8,2.054]
[1742162666717,2.11949,1887.2,1886.9,1.3902]
[1742162666918,3.43529,1887.2,1886.9,1.3902]
[1742162667218,2.11939,1887.3,1886.9,4.598]
[1742162667219,0.84784,1887.1,1886.9,4.598]
[1742162667525,0.84788,1887.0,1886.9,3.2078]
[1742162668021,0.84792,1887.0,1886.9,0.84793]
[1742162670315,0.85577218,1887.2,1887.1,0.84784]
[1742162671219,0.84788,1887.1,1887.0,0.84787]
[1742162673127,0.85577218,1887.2,1887.1,0.84784]
[1742162673329,3.2078,1887.7,1887.1,3.2078]
[1742162673519,3.2078,1887.7,1887.4,0.84768]
[1742162673520,7.46986,1887.7,1887.4,0.84768]
[1742162673826,0.8477,1887.5,1887.4,0.84768]
[1742162674216,0.84771,1887.4,1887.3,3.2078]
[1742162674531,0.84771,1887.4,1886.6,7.60617834]
[1742162674532,0.84793,1886.9,1886.8,0.84796]
[1742162675020,2.11966,1887.1,1886.7,0.73784218]
[1742162675021,0.84797,1886.8,1886.7,0.73784218]
[1742162675220,0.84797,1886.8,1886.7,0.00794218]
[1742162675221,2.24957,1886.8,1886.7,0.00794218]
[1742162676730,2.24957,1886.8,1886.7,1.58156218]
[1742162676918,2.24957,1886.8,1886.7,0.73354218]
[1742162678228,2.24957,1886.8,1886.7,2.95546218]
[1742162678528,2.24957,1886.8,1886.7,2.95542218]
[1742162678529,0.84797,1886.8,1886.7,2.95542218]
[1742162678920,0.84791,1887.0,1886.9,0.84788]
[1742162679122,0.84793,1886.9,1886.8,2.88204]
[1742162681628,0.84793,1886.9,1886.8,2.22184]
[1742162682219,0.84793,1886.9,1886.8,1.3739]
[1742162682925,2.25203,1886.9,1886.8,1.3739]
[1742162683327,2.25203,1886.9,1886.8,2.22187]
[1742162683729,0.84793,1886.9,1886.8,2.22187]
[1742162684229,0.84793,1886.9,1886.8,1.3739]
[1742162684423,0.84793,1886.9,1886.8,2.22187]
[1742162685827,0.84793,1886.9,1886.8,1.3739]
[1742162689435,0.84793,1886.9,1886.8,2.22187]
[1742162690135,0.84793,1886.9,1886.8,1.3739]
[1742162690427,0.84793,1886.9,1886.8,2.22187]
[1742162690634,0.84793,1886.9,1886.8,1.3739]
[1742162690832,0.84793,1886.9,1886.8,2.22187]
[1742162691835,0.84793,1886.9,1886.8,1.3739]
[1742162692238,2.20343,1886.9,1886.8,1.3739]
[1742162693528,2.20343,1886.9,1886.8,2.22187]
[1742162693838,0.84793,1886.9,1886.8,2.22187]
[1742162696832,3.2078,1887.2,1886.8,3.8739]
[1742162697028,2.0851,1887.4,1887.3,0.84775]
[1742162697233,0.84779,1887.3,1887.2,3.57065]
[1742162698439,0.84779,1887.3,1887.2,1.3891]
[1742162698638,0.84779,1887.3,1887.0,0.6666]
[1742162698639,0.84784,1887.1,1887.0,0.6666]
[1742162698828,0.84784,1887.1,1887.0,3.8744]
[1742162699534,1.54784,1887.1,1887.0,3.8744]
[1742162699736,1.54784,1887.1,1887.0,5.2731]
[1742162699940,1.54784,1887.1,1887.0,6.12098]
[1742162700335,0.84778,1887.3,1887.0,5.2731]
[1742162700634,0.84779,1887.2,1887.1,2.24652]
[1742162700829,2.17699,1887.2,1887.1,2.24652]
[1742162701338,0.7,1887.4,1887.1,1.3987]
[1742162701642,0.84775,1887.3,1887.2,2.27175]
[1742162701936,0.84775,1887.3,1887.2,1.424]
[1742162702132,2.29575,1887.3,1887.2,1.424]
[1742162702532,0.84784,1887.1,1887.0,7.4574]
[1742162702731,0.84784,1887.1,1887.0,8.30528]
[1742162703040,0.84784,1887.1,1887.0,3.8744]
[1742162703242,1.56364,1887.1,1887.0,3.8744]
[1742162703541,0.84784,1887.1,1887.0,3.8744]
[1742162703839,0.84784,1887.1,1887.0,3.2078]
[1742162704044,0.84797,1886.8,1886.7,0.00794218]
[1742162704742,4.05577,1886.8,1886.7,0.00794218]
[1742162705040,2.25717,1886.8,1886.7,0.00794218]
[1742162707545,2.25717,1886.8,1886.7,1.34134218]
[1742162710336,2.25717,1886.8,1886.7,0.00794218]
[1742162712134,0.84797,1886.9,1886.8,0.84796]
[1742162712634,0.84797,1886.9,1886.8,2.18886]
[1742162712833,0.84797,1886.9,1886.8,2.86136]
[1742162713036,2.24757,1886.9,1886.8,2.86136]
[1742162715648,2.24757,1886.9,1886.8,2.86137]
[1742162716950,2.24757,1886.9,1886.8,2.0134]
[1742162717145,2.24757,1886.9,1886.7,0.00794218]
[1742162717146,0.84797,1886.8,1886.7,0.00794218]
[1742162717447,0.84811,1886.5,1886.4,0.6648]
[1742162717752,0.84815,1886.4,1886.3,1.3647]
[1742162718049,2.21485,1886.4,1886.3,1.3647]
[1742162719150,2.93495,1886.4,1886.3,1.3647]
[1742162720548,0.8482,1886.3,1886.2,0.00794218]
[1742162720853,2.3038,1886.3,1886.2,0.00794218]
[1742162722449,2.3038,1886.3,1886.2,1.53638218]
[1742162722756,0.8482,1886.3,1886.2,0.68814218]
[1742162723148,0.8482,1886.3,1886.2,2.04914218]
[1742162723549,2.2558,1886.3,1886.2,2.04914218]
[1742162725150,2.2558,1886.3,1886.2,2.89738218]
[1742162725151,0.8482,1886.3,1886.2,2.89738218]
[1742162725749,2.2573,1886.3,1886.2,2.89738218]
[1742162725948,0.8482,1886.3,1886.2,2.89738218]
[1742162729254,0.8482,1886.3,1886.2,2.04914218]
[1742162729556,0.8482,1886.3,1886.2,2.89738218]
[1742162730854,0.84819,1886.4,1886.3,0.84816]
[1742162731056,0.85605218,1886.5,1886.4,0.84815]
[1742162731558,0.85605218,1886.5,1886.4,2.22765]
[1742162731752,0.00794218,1886.5,1886.4,2.22765]
[1742162731952,0.7149,1886.9,1886.4,1.3795]
[1742162731953,1.4038,1886.8,1886.4,1.3795]
[1742162732157,0.84811,1886.5,1886.4,5.82065]
[1742162734566,1.54951,1886.5,1886.4,1.3795]
[1742162734757,1.54951,1886.5,1886.4,2.22765]
[1742162735066,1.54951,1886.5,1886.4,1.3795]
[1742162735659,2.97111,1886.5,1886.4,1.3795]
[1742162736170,2.97111,1886.5,1886.4,2.22765]
[1742162737266,2.97111,1886.5,1886.4,1.3795]
[1742162737669,0.8482,1886.3,1886.2,1.53638218]
[1742162737871,0.8482,1886.3,1886.2,0.68814218]
[1742162738868,0.8482,1886.3,1886.2,0.00794218]
[1742162739065,1.5277,1886.3,1886.2,0.00794218]
[1742162740365,4.7355,1886.3,1886.2,0.00794218]
[1742162740559,3.8873,1886.3,1885.7,3.588]
[1742162740761,0.84842,1885.8,1885.7,0.7214]
[1742162741864,0.84847,1885.7,1885.6,0.00794218]
[1742162742371,4.05627,1885.7,1885.6,0.00794218]
[1742162743767,0.84847,1885.7,1885.6,0.00794218]
[1742162744172,0.84847,1885.7,1885.6,1.37054218]
[1742162745069,0.84847,1885.7,1885.6,2.21905218]
[1742162745265,2.12074,1886.1,1885.6,1.37054218]
[1742162745464,0.84842,1885.8,1885.7,1.53595]
[1742162745669,0.84842,1885.8,1885.7,0.6875]
[1742162746370,0.84847,1885.7,1885.6,1.37054218]
[1742162746570,2.28987,1885.7,1885.6,1.37054218]
[1742162750272,2.28987,1885.7,1885.6,2.21905218]
[1742162750469,0.84847,1885.7,1885.6,2.21905218]
[1742162750875,0.84847,1885.7,1885.6,1.37054218]
[1742162751073,2.17347,1885.7,1885.6,1.37054218]
[1742162751270,2.17347,1885.7,1885.6,2.21905218]
[1742162751468,2.17347,1885.7,1885.6,1.37054218]
[1742162753573,5.38127,1885.7,1885.6,0.00794218]
[1742162754271,6.06027,1885.7,1885.6,0.00794218]
[1742162755675,2.17347,1885.7,1885.6,0.85645218]
[1742162755979,2.17347,1885.7,1885.6,0.00794218]
[1742162756563,2.17347,1885.7,1885.6,1.44844218]
[1742162757571,2.17347,1885.7,1885.6,2.29695218]
[1742162757770,2.17347,1885.7,1885.6,1.44844218]
[1742162758875,2.17347,1885.7,1885.6,2.29695218]
[1742162759076,2.17347,1885.7,1885.6,1.44844218]
[1742162759376,2.17347,1885.7,1885.6,2.29695218]
[1742162759577,0.84847,1885.7,1885.6,2.29695218]
[1742162760480,0.84845,1885.8,1885.7,0.84847]
[1742162760673,5.38861,1885.9,1885.8,0.84842]
[1742162760871,0.84842,1885.8,1885.7,3.62275]
[1742162761071,0.84842,1885.8,1885.7,2.29185]
[1742162762378,4.5402,1885.9,1885.7,1.4434]
[1742162762577,0.84842,1885.8,1885.7,2.29184]
[1742162762879,0.84842,1885.8,1885.7,1.4434]
[1742162763079,0.84842,1885.8,1885.7,0.7269]
[1742162763280,2.18302,1885.8,1885.7,0.7269]
[1742162764671,0.84847,1885.7,1885.6,0.00794218]
[1742162764872,2.89747,1885.7,1885.6,0.00794218]
[1742162765586,6.10527,1885.7,1885.6,0.00794218]
[1742162767074,2.89747,1885.7,1885.6,0.00794218]
[1742162784294,8.101,1885.7,1885.0,3.552]
[1742162784591,0.84869,1885.2,1885.1,1.4162]
[1742162784891,0.84869,1885.2,1885.1,2.0767]
[1742162787889,0.84869,1885.2,1885.1,2.92544]
[1742162788587,0.84869,1885.2,1885.1,2.0767]
[1742162789189,0.84869,1885.2,1885.1,2.92544]
[1742162789898,0.84869,1885.2,1885.1,2.0767]
[1742162790491,0.84869,1885.2,1885.1,2.92544]
[1742162790691,0.84869,1885.2,1885.1,2.0767]
[1742162794400,0.84874,1885.1,1885.0,0.00794218]
[1742162794593,2.83654,1885.1,1885.0,0.00794218]
[1742162795304,2.83654,1885.1,1885.0,2.18e-06]
[1742162796300,2.16434,1885.1,1885.0,2.18e-06]
[1742162798006,4.66434,1885.1,1885.0,2.18e-06]
[1742162800201,2.12262,1884.5,1884.1,3.2078]
[1742162800403,0.84914,1884.2,1884.1,0.7095]
[1742162800802,2.12329,1883.9,1883.4,0.41881637]
[1742162800998,0.84928,1883.9,1883.8,0.7095]
[1742162801799,0.84928,1883.9,1883.8,3.00763]
[1742162802002,0.84928,1883.9,1883.8,2.1583]
[1742162802404,2.19188,1883.9,1883.8,2.1583]
[1742162803507,0.84933,1883.8,1883.7,0.00533754]
[1742162803706,5.39973,1883.8,1883.7,0.00533754]
[1742162807510,5.39973,1883.8,1883.7,1.46023754]
[1742162808003,4.05713,1883.8,1883.7,2.30960754]
[1742162808308,4.05713,1883.8,1883.7,1.46023754]
[1742162808510,5.40413,1883.8,1883.7,0.00533754]
[1742162809007,5.40413,1883.8,1883.7,1.42433754]
[1742162809316,11.54713,1883.8,1883.7,7.54e-06]
[1742162810211,11.54713,1883.8,1882.9,3.2078]
[1742162810212,0.84969,1883.0,1882.9,3.2078]
[1742162810398,0.84967,1883.1,1883.0,0.84965]
[1742162810603,0.84962,1883.2,1883.1,0.84959]
[1742162810800,3.2078,1883.4,1883.1,2.174]
[1742162811010,0.84958,1883.3,1883.2,0.84955]
[1742162811208,5.3314,1883.6,1883.2,1.4578]
[1742162811405,2.1236,1883.6,1883.2,3.5818]
[1742162811607,4.5869,1883.8,1883.4,3.2078]
[1742162811809,4.5869,1883.8,1883.5,1.4159]
[1742162811810,0.84946,1883.6,1883.5,1.4159]
[1742162812311,0.84946,1883.6,1883.5,2.26536]
[1742162812511,0.84946,1883.6,1883.5,5.47316]
[1742162813206,0.84946,1883.6,1883.5,4.6237]
[1742162813410,0.84946,1883.6,1883.5,1.4159]
[1742162813610,0.84946,1883.6,1883.5,2.26536]
[1742162813811,0.84946,1883.6,1883.5,5.47316]
[1742162814419,0.8494,1883.7,1883.6,0.84938]
[1742162815311,0.84934,1883.8,1883.7,0.8493]
[1742162815511,0.84931,1883.9,1883.8,0.84928]
[1742162815715,0.85725347,1884.0,1883.9,0.84928]
[1742162815913,0.00796347,1884.0,1883.9,0.84928]
[1742162816309,0.84922,1884.1,1884.0,0.84919]
[1742162816610,0.84918,1884.2,1884.1,0.84915]
[1742162817208,0.84918,1884.2,1884.1,4.05695]
[1742162819409,0.84918,1884.2,1884.1,4.73805]
[1742162819808,0.85710347,1884.3,1884.2,0.84914]
[1742162820009,0.00796347,1884.3,1884.2,0.84914]
[1742162820217,0.85706347,1884.3,1884.2,0.84914]
[1742162822617,0.84914,1884.2,1884.1,4.73805]
[1742162823920,0.85710347,1884.3,1884.2,0.84914]
[1742162824714,0.00796347,1884.3,1884.2,0.84914]
[1742162825018,0.85706347,1884.3,1884.2,0.84914]
[1742162827819,0.84914,1884.2,1884.1,4.73806]
[1742162829121,0.84914,1884.2,1884.1,6.16746]
[1742162831125,0.00796347,1884.3,1884.2,0.84914]
[1742162831320,0.00796347,1884.3,1884.2,2.27854]
[1742162831623,0.84904,1884.5,1884.4,0.84902]
[1742162831831,0.84904,1884.5,1884.4,4.46302]
[1742162832216,0.849,1884.6,1884.5,0.84896]
[1742162832525,0.849,1884.6,1884.5,2.19126]
[1742162832922,0.00796347,1884.7,1884.6,0.84896]
[1742162833118,0.00796347,1884.7,1884.6,2.89926]
[1742162840824,0.85688347,1884.7,1884.6,1.3423]
[1742162841030,2.78888347,1884.7,1884.3,10.05687]
[1742162841330,0.84901,1884.5,1884.4,1.3737]
[1742162841818,2.27711,1884.5,1884.4,1.3737]
[1742162842014,2.27711,1884.5,1884.4,2.22275]
[1742162842222,2.27711,1884.5,1884.4,1.3737]
[1742162843425,1.4281,1884.5,1884.4,2.22275]
[1742162843822,2.27711,1884.5,1884.4,2.22275]
[1742162846526,0.84905,1884.4,1884.3,3.8671]
[1742162846829,0.84905,1884.4,1884.3,9.7073]
[1742162846830,2.20285,1884.4,1884.3,9.7073]
[1742162847018,2.20285,1884.4,1884.3,2.9115]
[1742162847832,1.3538,1884.4,1884.3,2.9115]
[1742162848032,2.20285,1884.4,1884.3,6.1193]
[1742162850935,1.3538,1884.4,1884.3,6.1193]
[1742162851234,1.3538,1884.4,1884.3,9.6973]
[1742162851831,2.20285,1884.4,1884.3,9.6973]
[1742162853137,2.20285,1884.4,1884.3,9.6933]
[1742162854227,1.3538,1884.4,1884.3,9.6933]
[1742162854833,0.84899,1884.6,1884.5,0.84901]
[1742162855026,1.4295,1884.6,1884.5,4.05681]
[1742162856034,0.66656347,1884.7,1884.6,0.84896]
[1742162856235,2.09606347,1884.7,1884.6,2.26626]
[1742162856441,2.94498347,1884.7,1884.6,2.26626]
[1742162858842,2.09606347,1884.7,1884.6,2.26626]
[1742162859231,2.94498347,1884.7,1884.6,2.26626]
[1742162859848,2.09606347,1884.7,1884.6,2.26626]
[1742162860347,0.00796347,1884.7,1884.6,5.82726]
[1742162860945,2.11,1884.9,1884.6,5.82726]
[1742162861150,2.11,1884.9,1884.8,4.05667]
[1742162861851,2.11,1884.9,1884.8,5.49467]
[1742162862457,2.95883,1884.9,1884.8,5.49467]
[1742162863051,0.84901,1884.6,1884.5,0.84898]
[1742162863547,0.84901,1884.5,1884.4,14.27792]
[1742162863948,0.84901,1884.5,1884.4,3.2078]
[1742162864145,0.84901,1884.5,1884.1,2.21526162]
[1742162864146,0.8491,1884.3,1884.2,4.05691]
[1742162864354,0.8491,1884.3,1884.2,9.00631]
[1742162864757,2.1791,1884.3,1884.2,9.00631]
[1742162869852,0.725,1884.6,1884.4,0.84901]
[1742162870052,1.4275,1884.5,1884.4,0.84901]
[1742162870355,2.27651,1884.5,1884.4,0.84901]
[1742162870554,1.4275,1884.5,1884.4,0.84901]
[1742162870968,1.4275,1884.5,1884.4,4.05681]
[1742162871262,2.27651,1884.5,1884.4,4.05681]
[1742162871459,2.27651,1884.5,1884.4,0.84901]
[1742162873057,1.4275,1884.5,1884.4,0.84901]
[1742162873253,2.27651,1884.5,1884.4,0.84901]
[1742162875560,0.84905,1884.4,1884.3,0.8491]
[1742162875767,2.22415,1884.4,1884.3,4.3951]
[1742162880666,2.22415,1884.4,1884.3,3.2078]
[1742162881171,0.84919,1884.1,1884.0,0.00796347]
[1742162881766,2.99069,1884.1,1884.0,0.00796347]
[1742162885264,0.84937,1883.7,1883.6,0.84941]
[1742162885468,0.84936,1883.8,1883.7,0.84936]
[1742162886367,0.84936,1883.8,1883.7,0.6643]
[1742162886573,0.84937,1883.7,1883.6,0.00796347]
[1742162886767,0.84936,1883.8,1883.7,0.84937]
[1742162887167,0.84937,1883.7,1883.6,1.58214347]
[1742162887366,0.84937,1883.7,1883.6,0.73276347]
[1742162887673,0.84937,1883.7,1883.6,1.58218347]
[1742162887971,0.84937,1883.7,1883.6,0.00796347]
[1742162888172,0.84937,1883.7,1883.2,3.2078]
[1742162888173,0.84955,1883.3,1883.2,3.2078]
[1742162888367,0.84955,1883.3,1883.2,4.6032]
[1742162888971,0.84955,1883.3,1883.2,1.3954]
[1742162889170,2.12395,1883.3,1882.9,3.543]
[1742162889474,2.12395,1883.3,1882.8,9.9326]
[1742162889475,0.8497,1883.0,1882.8,9.9326]
[1742162889769,0.8497,1883.0,1882.9,1.40336347]
[1742162891574,0.8497,1883.0,1882.9,0.00796347]
[1742162891776,4.0575,1883.0,1882.9,0.00796347]
[1742162892179,4.0575,1883.0,1882.5,0.6712]
[1742162892180,0.84987,1882.6,1882.5,0.6712]
[1742162892474,2.12463,1882.7,1882.3,3.2078]
[1742162892674,2.12479,1882.5,1882.2,2.22983]
[1742162892877,0.85,1882.3,1882.2,1.3798]
[1742162893382,4.05782,1882.3,1882.1,1.3311]
[1742162893572,0.00796347,1882.4,1882.3,0.85]
[1742162893881,0.00796347,1882.4,1882.3,4.0578]
[1742162894080,0.00796347,1882.4,1882.3,3.2078]
[1742162894274,6.07096347,1882.4,1881.8,3.2078]
[1742162894481,3.57096347,1882.4,1881.8,3.2078]
[1742162894677,4.42094347,1882.4,1882.2,0.85004]
[1742162894872,0.8501,1882.1,1881.9,0.85015]
[1742162895180,0.00796347,1882.4,1882.0,1.3311]
[1742162895379,0.85006,1882.2,1882.1,3.2078]
[1742162895573,0.85009,1882.1,1882.0,1.3311]
[1742162895772,0.85025,1881.8,1881.6,4.05809]
[1742162895983,0.85022,1881.9,1881.7,0.85025]
[1742162896179,0.85023,1881.8,1881.7,2.24827]
[1742162896477,0.85023,1881.8,1881.7,1.398]
[1742162896780,0.85036,1881.5,1881.4,0.71]
[1742162896979,0.85036,1881.5,1880.9,6.40183124]
[1742162896980,2.12592,1881.5,1881.0,4.05837]
[1742162897173,0.85053,1881.2,1881.1,1.398]
[1742162897480,0.00796347,1881.4,1881.1,1.398]
[1742162897782,0.8505,1881.2,1881.1,1.398]
[1742162898077,0.8505,1881.2,1880.7,16.55740285]